[Event "41st Arco Open 2019"]
[Site "Arco"]
[Date "2019.10.08"]
[Round "5"]
[White "Leutwyler, Martin"]
[Black "Kostov, Kiril"]
[Result "1/2-1/2"]
[ECO "D23"]
[WhiteElo "2154"]
[BlackElo "1832"]
[Annotator "ChessBase"]
[PlyCount "104"]
[EventDate "2019.10.04"]
[EventType "swiss"]
[EventCountry "ITA"]
[SourceTitle "playchess.com"]
[Source "ChessBase"]
[SourceQuality "1"]
[TimeControl "40/5400+30:1800+30"]

1. d4 {[%emt 0:00:30]} d5 {[%emt 0:00:30]} 2. Nf3 {[%emt 0:00:00]} Nf6 {[%emt 0:00:00]} 3. c4 {[%emt 0:00:00]} dxc4 {[%emt 0:01:00]} 4. Qa4+ {[%emt 0:01:30]} c6 {[%emt 0:01:30]} 5. Qxc4 {[%emt 0:00:30]} Bf5 {[%emt 0:02:30]} 6. g3 {[%emt 0:04:30]} e6 {[%emt 0:01:30]} 7. Bg2 {[%emt 0:00:00]} Nbd7 {[%emt 0:01:30]} 8. O-O {[%emt 0:00:00]} Be7 {[%emt 0:01:30]} 9. Nc3 {[%emt 0:00:00]} Nb6 {[%emt 0:06:30]} 10. Qb3 {[%emt 0:00:00]} h6 {[%emt 0:01:30]} 11. Rd1 {[%emt 0:03:30]} O-O {[%emt 0:00:00]} 12. Ne5 {[%emt 0:01:30]} Bh7 {[%emt 0:09:00]} 13. e4 {[%emt 0:08:30]} a5 {[%emt 0:02:30]} 14. a4 {[%emt 0:09:30]} Bb4 {[%emt 0:00:30]} 15. f3 {[%emt 0:05:30]} Qc7 {[%emt 0:05:30]} 16. Be3 {[%emt 0:00:00]} Nfd7 {[%emt 0:04:30]} 17. Nd3 {[%emt 0:00:00]} Be7 {[%emt 0:00:00]} 18. Rac1 {[%emt 0:03:30]} Rfc8 {[%emt 0:05:00]} 19. Bh3 {[%emt 0:06:30]} Qd8 {[%emt 0:11:30]} 20. Ne5 {[%emt 0:19:30]} Kf8 {[%emt 0:03:30]} 21. Rd2 {[%emt 0:06:30]} Bb4 {[%emt 0:00:00]} 22. Nd3 {[%emt 0:00:00]} Bd6 {[%emt 0:11:00]} 23. Nc5 {[%emt 0:04:00]} Qe7 {[%emt 0:05:30]} 24. Nd3 {[%emt 0:03:30]} Bb4 {[%emt 0:00:00]} 25. Rdd1 {[%emt 0:02:30]} Ra6 {[%emt 0:09:11]} 26. Bf1 {[%emt 0:04:41]} Ra7 {[%emt 0:00:00]} 27. Na2 {[%emt 0:00:43]} Bd6 {[%emt 0:00:00]} 28. Bf2 {[%emt 0:05:07]} Bc7 {[%emt 0:07:17]} 29. Rd2 {[%emt 0:01:27]} Qf6 {[%emt 0:00:00]} 30. Bg2 {[%emt 0:00:00]} Qd8 {[%emt 0:00:00]} 31. Bh3 {[%emt 0:02:54]} Nf6 {[%emt 0:00:00]} 32. Nc3 {[%emt 0:01:30]} Kg8 {[%emt 0:03:22]} 33. Rcd1 {[%emt 0:00:00]} Rb8 {[%emt 0:01:23]} 34. Nc5 {[%emt 0:03:08]} Kh8 {[%emt 0:06:24]} 35. Rc1 {[%emt 0:03:37]} Bg8 {[%emt 0:00:00]} 36. Nd3 {[%emt 0:00:00]} Ne8 {[%emt 0:00:00]} 37. Rcd1 {[%emt 0:02:40]} Nf6 {[%emt 0:00:00]} 38. Kg2 {[%emt 0:00:53]} Kh7 {[%emt 0:00:00]} 39. Nc5 {[%emt 0:00:00]} Raa8 {[%emt 0:00:00]} 40. Kg1 {[%emt 0:01:09]} Kh8 {[%emt 0:03:00]} 41. Bg2 {[%emt 0:02:11]} Nbd7 {[%emt 0:00:00]} 42. Nxd7 {[%emt 0:02:30]} Qxd7 {[%emt 0:00:00]} 43. d5 {[%emt 0:01:30]} exd5 {[%emt 0:01:23]} 44. exd5 cxd5 {[%emt 0:00:30]} 45. Nxd5 {[%emt 0:03:00]} Nxd5 46. Rxd5 {[%emt 0:00:00]} Qe8 {[%emt 0:02:00]} 47. Re1 {[%emt 0:01:00]} Qc6 48. Rc5 {[%emt 0:01:30]} Qd6 {[%emt 0:04:00]} 49. Rd1 {[%emt 0:00:00]} Qe7 {[%emt 0:04:30]} 50. Rb5 {[%emt 0:04:12]} f6 {[%emt 0:00:00]} 51. Qc2 {[%emt 0:00:30]} Bh7 {[%emt 0:00:00]} 52. Qb3 {[%emt 0:04:48]} Bg8 {[%emt 0:18:26]} 1/2-1/2

[Event "41st Arco Open 2019"]
[Site "Arco"]
[Date "2019.10.08"]
[Round "5"]
[White "Heidel, Andre Nicolas"]
[Black "Horvath, Csaba"]
[Result "0-1"]
[ECO "A70"]
[WhiteElo "2140"]
[BlackElo "2503"]
[Annotator "ChessBase"]
[PlyCount "82"]
[EventDate "2019.10.04"]
[EventType "swiss"]
[EventCountry "ITA"]
[SourceTitle "playchess.com"]
[Source "ChessBase"]
[SourceQuality "1"]
[TimeControl "40/5400+30:1800+30"]

1. d4 {[%emt 0:00:30]} Nf6 {[%emt 0:00:30]} 2. c4 {[%emt 0:00:00]} e6 {[%emt 0:00:00]} 3. Nf3 {[%emt 0:00:00]} c5 {[%emt 0:01:00]} 4. d5 {[%emt 0:00:00]} d6 5. Nc3 {[%emt 0:00:00]} exd5 {[%emt 0:00:00]} 6. cxd5 {[%emt 0:01:30]} g6 {[%emt 0:00:30]} 7. e4 {[%emt 0:00:00]} a6 {[%emt 0:00:00]} 8. a4 Bg4 {[%emt 0:00:00]} 9. Be2 {[%emt 0:00:00]} Bxf3 {[%emt 0:00:30]} 10. gxf3 {[%emt 0:03:00]} Nbd7 {[%emt 0:02:30]} 11. h4 {[%emt 0:04:30]} Qe7 12. a5 {[%emt 0:02:30]} Bg7 {[%emt 0:06:00]} 13. Ra3 O-O {[%emt 0:00:30]} 14. Rb3 {[%emt 0:16:00]} Rab8 {[%emt 0:08:30]} 15. Be3 h5 {[%emt 0:09:30]} 16. Bg5 {[%emt 0:09:00]} Qd8 {[%emt 0:01:30]} 17. Qa1 {[%emt 0:03:30]} Qc7 {[%emt 0:02:30]} 18. Kf1 {[%emt 0:03:30]} Nh7 19. Bd2 {[%emt 0:01:30]} c4 {[%emt 0:30:00]} 20. Rb4 Ne5 {[%emt 0:00:30]} 21. Qa4 {[%emt 0:08:00]} Rfc8 {[%emt 0:06:30]} 22. Be3 Nf8 {[%emt 0:02:30]} 23. Bb6 {[%emt 0:10:00]} Qe7 24. Qd1 {[%emt 0:02:30]} Bh6 {[%emt 0:08:00]} 25. Ba7 {[%emt 0:00:30]} Ra8 26. Be3 {[%emt 0:00:30]} Bxe3 {[%emt 0:02:21]} 27. fxe3 Qc7 {[%emt 0:00:00]} 28. f4 {[%emt 0:15:00]} Ned7 {[%emt 0:03:13]} 29. Qa4 {[%emt 0:05:04]} Nc5 {[%emt 0:06:23]} 30. Qa2 {[%emt 0:07:36]} Nb3 {[%emt 0:01:43]} 31. Ra4 {[%emt 0:00:00]} Nd7 {[%emt 0:00:00]} 32. Kf2 {[%emt 0:00:00]} Ndc5 {[%emt 0:05:35]} 33. Rxc4 {[%emt 0:06:30]} Qe7 34. Rb4 {[%emt 0:00:00]} Nd2 {[%emt 0:00:00]} 35. e5 {[%emt 0:00:00]} dxe5 {[%emt 0:01:14]} 36. d6 {[%emt 0:01:13]} Qxd6 {[%emt 0:00:54]} 37. Rd1 {[%emt 0:02:35]} exf4 {[%emt 0:02:25]} 38. Rxf4 {[%emt 0:00:20]} Ne6 {[%emt 0:00:27]} 39. Ne4 {[%emt 0:00:12]} Nxe4+ {[%emt 0:00:15]} 40. Rxe4 {[%emt 0:03:40]} Qh2+ {[%emt 0:00:00]} 41. Kf3 {[%emt 0:02:20]} Rc2 {[%emt 0:06:00]} 0-1

[Event "41st Arco Open 2019"]
[Site "Arco"]
[Date "2019.10.08"]
[Round "5"]
[White "Klings, Peter"]
[Black "Qendro, Llambi"]
[Result "1-0"]
[ECO "A41"]
[WhiteElo "2116"]
[BlackElo "2312"]
[Annotator "RC"]
[PlyCount "61"]
[EventDate "2019.10.04"]
[EventType "swiss"]
[EventCountry "ITA"]
[SourceTitle "playchess.com"]
[Source "ChessBase"]
[SourceQuality "1"]
[TimeControl "40/5400+30:1800+30"]

1. Nf3 {[%emt 0:00:30]} g6 {[%emt 0:00:30]} 2. c4 {[%emt 0:00:30]} Bg7 {[%emt 0:00:30]} 3. d4 {[%emt 0:00:30]} d6 {[%emt 0:01:30]} 4. Nc3 {[%emt 0:01:30]} Bg4 5. e3 {[%emt 0:09:30]} Nc6 {[%emt 0:14:00]} 6. Be2 {[%emt 0:08:30]} e5 {[%emt 0:00:30]} 7. d5 {[%emt 0:01:30]} Nce7 {[%emt 0:11:30]} 8. e4 {[%emt 0:06:30]} Nf6 {[%emt 0:00:30]} 9. h3 {[%emt 0:00:00]} Bxf3 {[%emt 0:07:30]} 10. Bxf3 {[%emt 0:00:00]} h5 {[%emt 0:00:30]} 11. g4 {[%emt 0:00:00]} hxg4 {[%emt 0:03:30]} 12. hxg4 {[%emt 0:00:00]} Rxh1+ {[%emt 0:00:30]} 13. Bxh1 {[%emt 0:00:30]} Qd7 14. Bf3 {[%emt 0:00:30]} Nfg8 {[%emt 0:06:00]} 15. Bg2 {[%emt 0:25:30]} f6 {[%emt 0:08:30]} 16. g5 {[%emt 0:00:00]} fxg5 {[%emt 0:03:30]} 17. Bxg5 {[%emt 0:00:00]} O-O-O {[%emt 0:00:30]} 18. Qf3 {[%emt 0:03:30]} Rf8 {[%emt 0:00:30]} 19. Qe3 {[%emt 0:01:30]} Kb8 {[%emt 0:02:30]} 20. Bh3 {[%emt 0:00:00]} Qd8 {[%emt 0:03:30]} 21. Nb5 {[%emt 0:05:00]} b6 {[%emt 0:00:30]} 22. Qa3 {[%emt 0:06:30]} a5 {[%emt 0:05:30]} 23. b4 {[%emt 0:00:00]} Kb7 {[%emt 0:02:30]} 24. bxa5 {[%emt 0:07:00]} Qa8 {[%emt 0:00:30]} 25. a6+ {[%emt 0:01:30]} Kb8 {[%emt 0:00:00]} 26. Rb1 {[%emt 0:06:26]} Rd8 {[%emt 0:10:12]} 27. Be3 {[%emt 0:04:30]} Nc8 {[%emt 0:00:30]} 28. a7+ {[%emt 0:01:38]} Kb7 {[%emt 0:00:00]} 29. Bxc8+ {[%emt 0:00:30]} Rxc8 {[%emt 0:13:35]} 30. Nxd6+ {[%emt 0:04:08]} cxd6 {[%emt 0:00:30]} 31. Rxb6+ {[%emt 0:00:13]} 1-0

[Event "41st Arco Open 2019"]
[Site "Arco"]
[Date "2019.10.08"]
[Round "5"]
[White "Pasti, Aron"]
[Black "Bifulco, Michel"]
[Result "0-1"]
[ECO "C70"]
[WhiteElo "2099"]
[BlackElo "2261"]
[Annotator "ChessBase"]
[PlyCount "118"]
[EventDate "2019.10.04"]
[EventType "swiss"]
[EventCountry "ITA"]
[SourceTitle "playchess.com"]
[Source "ChessBase"]
[SourceQuality "1"]
[TimeControl "40/5400+30:1800+30"]

1. e4 {[%emt 0:00:30]} e5 {[%emt 0:00:30]} 2. Nf3 {[%emt 0:00:30]} Nc6 {[%emt 0:00:00]} 3. Bb5 {[%emt 0:00:00]} g6 {[%emt 0:00:00]} 4. c3 {[%emt 0:00:00]} a6 5. Ba4 {[%emt 0:00:30]} Bg7 {[%emt 0:00:00]} 6. d4 {[%emt 0:00:30]} exd4 {[%emt 0:00:30]} 7. cxd4 {[%emt 0:10:30]} b5 {[%emt 0:00:30]} 8. Bc2 {[%emt 0:00:00]} d5 {[%emt 0:00:00]} 9. O-O {[%emt 0:13:00]} Bg4 {[%emt 0:11:00]} 10. exd5 {[%emt 0:12:30]} Bxf3 {[%emt 0:04:30]} 11. Qxf3 {[%emt 0:03:30]} Nxd4 {[%emt 0:24:30]} 12. Qe4+ {[%emt 0:00:30]} Ne7 {[%emt 0:00:00]} 13. Bg5 {[%emt 0:09:30]} Nxc2 {[%emt 0:00:00]} 14. Qxc2 {[%emt 0:11:30]} O-O {[%emt 0:00:00]} 15. Rd1 h6 {[%emt 0:00:00]} 16. Bh4 {[%emt 0:12:00]} Qd7 {[%emt 0:04:30]} 17. Nc3 {[%emt 0:03:30]} Nf5 {[%emt 0:01:30]} 18. Bg3 {[%emt 0:00:30]} Nd4 19. Qd3 {[%emt 0:01:02]} Rfe8 {[%emt 0:02:00]} 20. a3 {[%emt 0:00:00]} c5 {[%emt 0:07:30]} 21. dxc6 {[%emt 0:06:02]} Qxc6 {[%emt 0:00:00]} 22. Re1 {[%emt 0:02:58]} Rad8 {[%emt 0:01:00]} 23. Rad1 {[%emt 0:05:03]} Kh7 {[%emt 0:05:30]} 24. Rxe8 {[%emt 0:03:52]} Rxe8 {[%emt 0:15:30]} 25. f3 Rd8 {[%emt 0:02:30]} 26. Bf2 {[%emt 0:04:31]} a5 {[%emt 0:20:59]} 27. Qf1 {[%emt 0:00:31]} b4 {[%emt 0:00:00]} 28. axb4 {[%emt 0:00:00]} axb4 {[%emt 0:00:00]} 29. Nb5 {[%emt 0:00:59]} Nxf3+ {[%emt 0:01:05]} 30. gxf3 {[%emt 0:00:06]} Rxd1 {[%emt 0:00:00]} 31. Qxd1 Qxb5 {[%emt 0:00:00]} 32. b3 {[%emt 0:00:25]} Bc3 {[%emt 0:01:54]} 33. Qd6 {[%emt 0:01:29]} Qg5+ {[%emt 0:00:00]} 34. Kh1 {[%emt 0:00:00]} h5 {[%emt 0:00:00]} 35. Qd7 {[%emt 0:00:58]} Qf4 {[%emt 0:01:27]} 36. Qd5 {[%emt 0:00:29]} h4 {[%emt 0:00:00]} 37. Qe4 {[%emt 0:00:00]} Qxe4 {[%emt 0:00:00]} 38. fxe4 {[%emt 0:00:37]} h3 {[%emt 0:01:33]} 39. Be3 {[%emt 0:00:56]} Kg7 {[%emt 0:00:00]} 40. Kg1 {[%emt 0:00:00]} Kf6 {[%emt 0:00:00]} 41. Bf4 {[%emt 0:06:32]} Bd4+ {[%emt 0:00:00]} 42. Kh1 {[%emt 0:00:30]} Ke6 {[%emt 0:00:00]} 43. Bd2 {[%emt 0:02:30]} Bc5 {[%emt 0:09:02]} 44. Bf4 {[%emt 0:00:00]} Bd6 {[%emt 0:00:00]} 45. Be3 {[%emt 0:00:00]} Ke5 {[%emt 0:00:00]} 46. Bc5 {[%emt 0:00:30]} Ke6 {[%emt 0:00:00]} 47. Bd4 {[%emt 0:00:00]} Be5 {[%emt 0:00:00]} 48. Bf2 {[%emt 0:01:00]} Bc3 {[%emt 0:25:58]} 49. Bg3 {[%emt 0:00:00]} f5 {[%emt 0:00:00]} 50. exf5+ {[%emt 0:02:00]} gxf5 {[%emt 0:00:00]} 51. Kg1 {[%emt 0:00:30]} Kd5 {[%emt 0:00:00]} 52. Kf1 {[%emt 0:02:30]} Be5 {[%emt 0:00:00]} 53. Be1 {[%emt 0:00:30]} Bd6 {[%emt 0:00:00]} 54. Kf2 Ke4 {[%emt 0:00:00]} 55. Ke2 {[%emt 0:04:45]} f4 {[%emt 0:00:00]} 56. Kf2 {[%emt 0:01:50]} f3 {[%emt 0:00:00]} 57. Kg1 {[%emt 0:03:20]} Ke3 {[%emt 0:00:00]} 58. Kh1 {[%emt 0:00:00]} Ke2 {[%emt 0:00:00]} 59. Bh4 {[%emt 0:00:00]} Bxh2 {[%emt 0:00:00]} 0-1

[Event "41st Arco Open 2019"]
[Site "Arco"]
[Date "2019.10.08"]
[Round "5"]
[White "Cardili, Mariano"]
[Black "Scheftlein, Richard"]
[Result "0-1"]
[ECO "E54"]
[WhiteElo "2079"]
[BlackElo "2236"]
[Annotator "ChessBase"]
[PlyCount "126"]
[EventDate "2019.10.04"]
[EventType "swiss"]
[EventCountry "ITA"]
[SourceTitle "playchess.com"]
[Source "ChessBase"]
[SourceQuality "1"]
[TimeControl "40/5400+30:1800+30"]

1. d4 {[%emt 0:00:30]} Nf6 {[%emt 0:00:30]} 2. c4 {[%emt 0:00:00]} e6 {[%emt 0:00:00]} 3. Nc3 {[%emt 0:00:00]} Bb4 {[%emt 0:00:00]} 4. e3 {[%emt 0:00:30]} O-O 5. Bd3 {[%emt 0:00:30]} d5 {[%emt 0:01:00]} 6. Nf3 {[%emt 0:00:30]} c5 {[%emt 0:00:30]} 7. O-O {[%emt 0:00:30]} cxd4 {[%emt 0:00:00]} 8. exd4 {[%emt 0:00:00]} dxc4 {[%emt 0:00:00]} 9. Bxc4 {[%emt 0:01:00]} b6 {[%emt 0:00:30]} 10. Bg5 {[%emt 0:03:30]} Bb7 {[%emt 0:00:30]} 11. Ne5 {[%emt 0:01:30]} Nc6 12. Nxc6 {[%emt 0:18:30]} Bxc6 {[%emt 0:07:00]} 13. Qb3 {[%emt 0:10:30]} Bxc3 14. bxc3 {[%emt 0:02:30]} Qd6 {[%emt 0:05:00]} 15. Bxf6 {[%emt 0:00:00]} gxf6 {[%emt 0:00:30]} 16. Rfd1 {[%emt 0:05:00]} b5 {[%emt 0:07:30]} 17. Be2 {[%emt 0:00:30]} Rab8 {[%emt 0:10:30]} 18. Rd3 {[%emt 0:10:30]} Bd5 {[%emt 0:26:30]} 19. Qb2 {[%emt 0:04:30]} Kh8 {[%emt 0:00:00]} 20. Rg3 {[%emt 0:01:30]} Rg8 {[%emt 0:00:00]} 21. Qd2 {[%emt 0:07:30]} Rxg3 {[%emt 0:00:00]} 22. hxg3 {[%emt 0:00:00]} Kg7 {[%emt 0:00:00]} 23. Bf3 {[%emt 0:05:00]} Bxf3 {[%emt 0:00:00]} 24. gxf3 {[%emt 0:00:30]} Qc6 {[%emt 0:00:00]} 25. Kg2 {[%emt 0:00:00]} Qd5 {[%emt 0:19:30]} 26. a4 {[%emt 0:05:00]} bxa4 {[%emt 0:00:00]} 27. Rxa4 {[%emt 0:00:30]} Rb1 {[%emt 0:00:00]} 28. Rb4 {[%emt 0:06:14]} Rxb4 {[%emt 0:00:00]} 29. cxb4 Qc4 {[%emt 0:00:00]} 30. f4 {[%emt 0:01:28]} Kf8 {[%emt 0:10:02]} 31. Qb2 {[%emt 0:01:50]} Ke7 {[%emt 0:00:00]} 32. b5 {[%emt 0:03:11]} Kd7 {[%emt 0:00:00]} 33. b6 {[%emt 0:00:58]} Qc6+ {[%emt 0:00:00]} 34. Kg1 axb6 {[%emt 0:00:00]} 35. Qb1 {[%emt 0:02:57]} f5 {[%emt 0:07:58]} 36. Qd1 {[%emt 0:00:52]} Qd5 {[%emt 0:00:00]} 37. Qh5 {[%emt 0:00:00]} Ke8 {[%emt 0:00:00]} 38. Qxh7 {[%emt 0:03:14]} Qxd4 39. Qg8+ {[%emt 0:00:11]} Ke7 {[%emt 0:00:00]} 40. Qb8 {[%emt 0:01:50]} Qd1+ {[%emt 0:00:00]} 41. Kh2 {[%emt 0:32:10]} Qd6 {[%emt 0:00:00]} 42. Qb7+ Kf8 {[%emt 0:28:02]} 43. Qc8+ {[%emt 0:00:00]} Kg7 {[%emt 0:00:00]} 44. Qc3+ {[%emt 0:00:00]} Kg8 {[%emt 0:00:00]} 45. Qc8+ {[%emt 0:00:00]} Kh7 {[%emt 0:00:00]} 46. Qe8 {[%emt 0:00:00]} Kg7 {[%emt 0:00:00]} 47. Kg1 Qd1+ {[%emt 0:00:00]} 48. Kg2 {[%emt 0:00:00]} Qd5+ {[%emt 0:00:00]} 49. Kg1 {[%emt 0:00:00]} Qd1+ {[%emt 0:00:00]} 50. Kg2 {[%emt 0:00:00]} Qd5+ {[%emt 0:00:00]} 51. Kg1 {[%emt 0:00:00]} b5 {[%emt 0:00:00]} 52. Qe7 Qd1+ {[%emt 0:00:00]} 53. Kg2 {[%emt 0:00:00]} Qd4 {[%emt 0:00:00]} 54. Qc7 b4 {[%emt 0:00:00]} 55. Qb8 {[%emt 0:00:00]} Qd5+ {[%emt 0:00:00]} 56. Kh2 {[%emt 0:00:00]} b3 {[%emt 0:00:00]} 57. Qb4 {[%emt 0:00:00]} Qd3 {[%emt 0:04:07]} 58. Qb8 {[%emt 0:00:00]} Qc3 {[%emt 0:00:00]} 59. Qd8 {[%emt 0:00:00]} Qf6 {[%emt 0:00:00]} 60. Qb8 {[%emt 0:00:00]} b2 {[%emt 0:00:00]} 61. Qb6 {[%emt 0:00:00]} Qc3 {[%emt 0:00:00]} 62. Qd8 {[%emt 0:00:00]} Qf6 {[%emt 0:00:00]} 63. Qb8 {[%emt 0:00:00]} Qd4 {[%emt 0:00:00]} 0-1

[Event "41st Arco Open 2019"]
[Site "Arco"]
[Date "2019.10.08"]
[Round "5"]
[White "Voelker, Sebastian"]
[Black "De Santis, Alessio"]
[Result "0-1"]
[ECO "B41"]
[WhiteElo "2074"]
[BlackElo "2178"]
[Annotator "ChessBase"]
[PlyCount "72"]
[EventDate "2019.10.04"]
[EventType "swiss"]
[EventCountry "ITA"]
[SourceTitle "playchess.com"]
[Source "ChessBase"]
[SourceQuality "1"]
[TimeControl "40/5400+30:1800+30"]

1. e4 {[%emt 0:00:30]} c5 {[%emt 0:04:30]} 2. Nf3 {[%emt 0:00:00]} e6 {[%emt 0:00:00]} 3. d4 {[%emt 0:00:00]} cxd4 {[%emt 0:00:00]} 4. Nxd4 {[%emt 0:00:30]} a6 {[%emt 0:00:30]} 5. Be2 {[%emt 0:05:30]} Nf6 {[%emt 0:01:30]} 6. Bf3 {[%emt 0:01:30]} Qc7 {[%emt 0:01:30]} 7. O-O {[%emt 0:03:30]} Be7 {[%emt 0:01:30]} 8. Nc3 {[%emt 0:01:30]} d6 {[%emt 0:00:30]} 9. a4 {[%emt 0:04:30]} Nbd7 {[%emt 0:08:30]} 10. Nb3 {[%emt 0:07:30]} O-O {[%emt 0:09:30]} 11. Bf4 {[%emt 0:11:30]} Ne5 12. a5 {[%emt 0:06:30]} Bd7 {[%emt 0:10:00]} 13. Bxe5 {[%emt 0:00:00]} dxe5 {[%emt 0:00:30]} 14. Re1 {[%emt 0:18:00]} Rfd8 {[%emt 0:05:30]} 15. Re3 {[%emt 0:00:30]} Ba4 {[%emt 0:19:30]} 16. Qf1 {[%emt 0:08:30]} Bxb3 {[%emt 0:05:30]} 17. cxb3 {[%emt 0:00:00]} Bb4 {[%emt 0:02:30]} 18. g4 {[%emt 0:07:00]} Bxa5 {[%emt 0:00:30]} 19. g5 {[%emt 0:00:30]} Nd7 {[%emt 0:03:30]} 20. Bg4 Bb6 {[%emt 0:01:30]} 21. Rf3 {[%emt 0:03:00]} Nf8 {[%emt 0:00:30]} 22. h4 {[%emt 0:01:16]} Rd2 {[%emt 0:01:30]} 23. Qh3 {[%emt 0:03:28]} Qe7 24. Rf1 {[%emt 0:05:42]} Rad8 {[%emt 0:03:49]} 25. Qg3 Bd4 {[%emt 0:03:34]} 26. Nd1 {[%emt 0:08:33]} Ng6 {[%emt 0:14:53]} 27. Bh5 {[%emt 0:02:17]} Nf4 {[%emt 0:00:00]} 28. Rxf4 {[%emt 0:00:00]} exf4 {[%emt 0:00:00]} 29. Qxf4 {[%emt 0:00:18]} Rc2 {[%emt 0:00:54]} 30. e5 {[%emt 0:00:36]} g6 {[%emt 0:00:00]} 31. Bf3 {[%emt 0:00:00]} Qc7 {[%emt 0:00:00]} 32. Re1 {[%emt 0:00:57]} Rc5 {[%emt 0:02:24]} 33. h5 {[%emt 0:01:27]} Bxe5 {[%emt 0:00:00]} 34. Qh4 {[%emt 0:00:00]} Bf4 {[%emt 0:00:00]} 35. hxg6 {[%emt 0:01:30]} Rxg5+ {[%emt 0:01:41]} 36. Kh1 {[%emt 0:00:11]} hxg6 {[%emt 0:00:00]} 0-1

[Event "41st Arco Open 2019"]
[Site "Arco"]
[Date "2019.10.08"]
[Round "5"]
[White "Palczert, Matyas"]
[Black "Ager, Josef"]
[Result "0-1"]
[ECO "B06"]
[WhiteElo "2009"]
[BlackElo "2154"]
[Annotator "ChessBase"]
[PlyCount "110"]
[EventDate "2019.10.04"]
[EventType "swiss"]
[EventCountry "ITA"]
[SourceTitle "playchess.com"]
[Source "ChessBase"]
[SourceQuality "1"]
[TimeControl "40/5400+30:1800+30"]

1. e4 {[%emt 0:00:30]} g6 {[%emt 0:00:30]} 2. d4 {[%emt 0:00:00]} Bg7 {[%emt 0:00:00]} 3. Nc3 {[%emt 0:00:00]} a6 {[%emt 0:00:00]} 4. f4 {[%emt 0:01:30]} b5 5. a3 {[%emt 0:02:30]} e6 {[%emt 0:01:00]} 6. Nf3 {[%emt 0:02:30]} Ne7 {[%emt 0:00:30]} 7. Be2 {[%emt 0:03:30]} d5 {[%emt 0:00:00]} 8. e5 {[%emt 0:00:00]} Nd7 {[%emt 0:00:00]} 9. Be3 {[%emt 0:06:00]} Nf5 {[%emt 0:01:30]} 10. Bf2 {[%emt 0:00:30]} h5 {[%emt 0:01:30]} 11. O-O {[%emt 0:03:30]} Bf8 {[%emt 0:00:30]} 12. Bd3 {[%emt 0:10:30]} c5 {[%emt 0:02:30]} 13. Bxf5 {[%emt 0:02:30]} gxf5 14. dxc5 {[%emt 0:02:30]} Nxc5 {[%emt 0:00:00]} 15. b4 {[%emt 0:00:00]} Ne4 {[%emt 0:03:30]} 16. Nxe4 {[%emt 0:05:00]} fxe4 {[%emt 0:00:30]} 17. Bh4 {[%emt 0:00:30]} Qb6+ {[%emt 0:00:30]} 18. Nd4 {[%emt 0:08:30]} Bd7 {[%emt 0:40:30]} 19. Bf2 {[%emt 0:03:30]} Qc7 {[%emt 0:00:00]} 20. Nb3 {[%emt 0:02:30]} Bc6 {[%emt 0:00:00]} 21. Bc5 {[%emt 0:01:30]} Bxc5+ {[%emt 0:00:00]} 22. Nxc5 {[%emt 0:00:00]} a5 {[%emt 0:00:00]} 23. Qd4 {[%emt 0:03:00]} axb4 {[%emt 0:00:00]} 24. f5 {[%emt 0:07:30]} bxa3 {[%emt 0:00:00]} 25. fxe6 {[%emt 0:00:30]} fxe6 {[%emt 0:17:30]} 26. Rf6 {[%emt 0:02:30]} Bd7 {[%emt 0:00:00]} 27. Raf1 {[%emt 0:08:30]} Qa7 {[%emt 0:00:00]} 28. Rf7 {[%emt 0:07:39]} Rc8 {[%emt 0:00:00]} 29. Nxe6 Qxd4+ {[%emt 0:00:00]} 30. Nxd4 {[%emt 0:10:50]} Rc4 {[%emt 0:27:41]} 31. e6 {[%emt 0:00:42]} Rxd4 {[%emt 0:00:00]} 32. Rxd7 {[%emt 0:00:00]} e3 {[%emt 0:00:00]} 33. Ra7 {[%emt 0:03:40]} e2 {[%emt 0:00:00]} 34. Re1 {[%emt 0:00:30]} Rf8 {[%emt 0:00:00]} 35. Ra8+ {[%emt 0:03:13]} Ke7 36. Ra7+ {[%emt 0:00:17]} Kxe6 {[%emt 0:00:00]} 37. Rxa3 Re4 {[%emt 0:00:00]} 38. Rf3 {[%emt 0:01:57]} Rc8 {[%emt 0:00:00]} 39. c3 {[%emt 0:00:24]} Kd6 {[%emt 0:00:00]} 40. Kf2 {[%emt 0:00:39]} Rce8 {[%emt 0:00:00]} 41. g3 {[%emt 0:03:09]} Kc5 {[%emt 0:00:00]} 42. Rf7 Kc4 {[%emt 0:00:00]} 43. Rf3 {[%emt 0:04:00]} b4 {[%emt 0:00:00]} 44. cxb4 {[%emt 0:00:30]} d4 {[%emt 0:00:00]} 45. Rc1+ {[%emt 0:00:30]} Kxb4 46. Rb1+ {[%emt 0:00:30]} Kc4 {[%emt 0:00:00]} 47. Rc1+ {[%emt 0:00:00]} Kd5 {[%emt 0:00:00]} 48. Ke1 {[%emt 0:01:00]} R8e5 {[%emt 0:00:00]} 49. Ra1 {[%emt 0:00:30]} Re3 {[%emt 0:00:00]} 50. Rxe3 {[%emt 0:06:08]} Rxe3 51. Kd2 {[%emt 0:01:19]} Ke4 {[%emt 0:00:00]} 52. Re1 {[%emt 0:00:00]} Kf3 {[%emt 0:00:00]} 53. Rg1 {[%emt 0:04:27]} Kf2 {[%emt 0:00:00]} 54. Re1 {[%emt 0:00:04]} d3 {[%emt 0:00:00]} 55. h3 {[%emt 0:00:27]} Rxg3 0-1